[Event "Titled Tuesday Blitz February 14 Early 2023"]
[White "Szente Varga, Fruzsina"]
[Black "Kavutskiy, Konstantin"]
[WhiteFideId "712264"]
[BlackFideId "2026384"]
[WhiteElo "2075"]
[BlackElo "2414"]
[Result "0-1"]
[Round "11"]
[TimeControl "180+2"]
[Date "2023.02.14"]
[WhiteClock "0:00:19"]
[BlackClock "0:00:34"]

1. e4 {[%clk 0:02:50]}  Nc6 {[%clk 0:02:56]} 2. d4 {[%clk 0:02:48]}  d6 {[%clk 0:02:56]} 3. Nc3 {[%clk 0:02:47]}  Nf6 {[%clk 0:02:55]} 4. f3 {[%clk 0:02:44]}  g6 {[%clk 0:02:55]} 5. Be3 {[%clk 0:02:44]}  Bg7 {[%clk 0:02:54]} 6. Qd2 {[%clk 0:02:45]}  e5 {[%clk 0:02:54]} 7. Nge2 {[%clk 0:02:44]}  O-O {[%clk 0:02:49]} 8. O-O-O {[%clk 0:02:44]}  a6 {[%clk 0:02:46]} 9. h4 {[%clk 0:02:42]}  h5 {[%clk 0:02:32]} 10. Bg5 {[%clk 0:02:36]}  Qe8 {[%clk 0:02:24]} 11. Bh6 {[%clk 0:02:16]}  exd4 {[%clk 0:02:14]} 12. Bxg7 {[%clk 0:01:57]}  Kxg7 {[%clk 0:02:12]} 13. Nxd4 {[%clk 0:01:57]}  Nxd4 {[%clk 0:02:13]} 14. Qxd4 {[%clk 0:01:58]}  Qe5 {[%clk 0:02:13]} 15. Qd2 {[%clk 0:01:38]}  b5 {[%clk 0:02:04]} 16. Be2 {[%clk 0:01:37]}  b4 {[%clk 0:02:02]} 17. Nd5 {[%clk 0:01:31]}  Nxd5 {[%clk 0:02:00]} 18. Qxd5 {[%clk 0:01:25]}  Qxd5 {[%clk 0:02:00]} 19. exd5 {[%clk 0:01:10]}  a5 {[%clk 0:02:01]} 20. Bb5 {[%clk 0:01:06]}  Rb8 {[%clk 0:01:53]} 21. Ba4 {[%clk 0:01:02]}  Ba6 {[%clk 0:01:46]} 22. Rhe1 {[%clk 0:00:58]}  f6 {[%clk 0:01:41]} 23. Re7+ {[%clk 0:00:55]}  Rf7 {[%clk 0:01:41]} 24. Rde1 {[%clk 0:00:56]}  Rf8 {[%clk 0:01:40]} 25. Be8 {[%clk 0:00:44]}  Rxe7 {[%clk 0:01:40]} 26. Rxe7+ {[%clk 0:00:44]}  Kh6 {[%clk 0:01:40]} 27. Bc6 {[%clk 0:00:39]}  g5 {[%clk 0:01:29]} 28. hxg5+ {[%clk 0:00:30]}  fxg5 {[%clk 0:01:30]} 29. Rxc7 {[%clk 0:00:31]}  Bf1 {[%clk 0:01:28]} 30. Rd7 {[%clk 0:00:31]}  h4 {[%clk 0:01:20]} 31. Rxd6+ {[%clk 0:00:31]}  Kh5 {[%clk 0:01:21]} 32. Re6 {[%clk 0:00:29]}  Bxg2 {[%clk 0:01:19]} 33. Be8+ {[%clk 0:00:22]}  Rxe8 {[%clk 0:01:19]} 34. Rxe8 {[%clk 0:00:23]}  Bxf3 {[%clk 0:01:14]} 35. d6 {[%clk 0:00:23]}  Bc6 {[%clk 0:01:12]} 36. Rh8+ {[%clk 0:00:23]}  Kg4 {[%clk 0:01:12]} 37. Kd2 {[%clk 0:00:24]}  Kg3 {[%clk 0:00:54]} 38. Ke1 {[%clk 0:00:20]}  h3 {[%clk 0:00:51]} 39. Kf1 {[%clk 0:00:20]}  h2 {[%clk 0:00:40]} 40. Rh6 {[%clk 0:00:20]}  g4 {[%clk 0:00:37]} 41. Rh7 {[%clk 0:00:19]}  Bb5+ {[%clk 0:00:36]} 42. Ke1 {[%clk 0:00:19]}  Kg2 {[%clk 0:00:36]} 43. c4 {[%clk 0:00:16]}  bxc3 {[%clk 0:00:34]} 44. bxc3 {[%clk 0:00:17]}  h1=Q+ {[%clk 0:00:33]} 45. Rxh1 {[%clk 0:00:17]}  Kxh1 {[%clk 0:00:34]} 46. c4 {[%clk 0:00:18]}  Bc6 {[%clk 0:00:34]} 47. Kf2 {[%clk 0:00:18]}  Kh2 {[%clk 0:00:35]} 48. Ke3 {[%clk 0:00:18]}  g3 {[%clk 0:00:35]} 49. Kd4 {[%clk 0:00:17]}  g2 {[%clk 0:00:35]} 50. Kc5 {[%clk 0:00:18]}  Bd7 {[%clk 0:00:35]} 51. Kb6 {[%clk 0:00:18]}  g1=Q+ {[%clk 0:00:36]} 52. c5 {[%clk 0:00:19]}  Qb1+ {[%clk 0:00:34]} 53. Kc7 {[%clk 0:00:19]}  Qb5 {[%clk 0:00:34]} 0-1


[Site "https://www.chess.com"]

[Event "Titled Tuesday Blitz February 14 Early 2023"]
[White "Fajdetic, Hrvoje"]
[Black "Balabayeva, Xeniya"]
[WhiteFideId "14501945"]
[BlackFideId "13719688"]
[WhiteElo "2151"]
[BlackElo "2191"]
[Result "0-1"]
[Round "11"]
[TimeControl "180+2"]
[Date "2023.02.14"]
[WhiteClock "0:00:10"]
[BlackClock "0:00:04"]

1. d4 {[%clk 0:03:00]}  d5 {[%clk 0:02:58]} 2. Bf4 {[%clk 0:03:00]}  Nf6 {[%clk 0:02:57]} 3. e3 {[%clk 0:03:01]}  c5 {[%clk 0:02:57]} 4. Nc3 {[%clk 0:03:01]}  Nc6 {[%clk 0:02:54]} 5. Nb5 {[%clk 0:03:00]}  Qa5+ {[%clk 0:02:52]} 6. c3 {[%clk 0:02:59]}  e5 {[%clk 0:02:29]} 7. dxe5 {[%clk 0:03:00]}  a6 {[%clk 0:02:29]} 8. Nc7+ {[%clk 0:02:39]}  Qxc7 {[%clk 0:02:23]} 9. exf6 {[%clk 0:02:39]}  Qd8 {[%clk 0:02:22]} 10. fxg7 {[%clk 0:02:35]}  Bxg7 {[%clk 0:02:23]} 11. Nf3 {[%clk 0:02:32]}  Be6 {[%clk 0:02:19]} 12. Be2 {[%clk 0:02:31]}  h6 {[%clk 0:02:14]} 13. O-O {[%clk 0:02:30]}  Qe7 {[%clk 0:02:04]} 14. Qc2 {[%clk 0:02:26]}  O-O {[%clk 0:02:00]} 15. Rfd1 {[%clk 0:01:59]}  Rfd8 {[%clk 0:01:56]} 16. Rd2 {[%clk 0:01:50]}  Rac8 {[%clk 0:01:56]} 17. Rad1 {[%clk 0:01:49]}  d4 {[%clk 0:01:31]} 18. cxd4 {[%clk 0:01:25]}  cxd4 {[%clk 0:01:28]} 19. Qe4 {[%clk 0:01:19]}  f5 {[%clk 0:01:22]} 20. Qb1 {[%clk 0:01:10]}  Qf7 {[%clk 0:01:05]} 21. b3 {[%clk 0:00:58]}  dxe3 {[%clk 0:00:38]} 22. Bxe3 {[%clk 0:00:58]}  f4 {[%clk 0:00:34]} 23. Bb6 {[%clk 0:00:57]}  Rxd2 {[%clk 0:00:32]} 24. Rxd2 {[%clk 0:00:56]}  Nb4 {[%clk 0:00:30]} 25. Nd4 {[%clk 0:00:42]}  Bxd4 {[%clk 0:00:16]} 26. Bxd4 {[%clk 0:00:42]}  Bf5 {[%clk 0:00:15]} 27. Qb2 {[%clk 0:00:37]}  b5 {[%clk 0:00:14]} 28. Bc3 {[%clk 0:00:32]}  Nd5 {[%clk 0:00:13]} 29. Be5 {[%clk 0:00:30]}  Be4 {[%clk 0:00:10]} 30. f3 {[%clk 0:00:27]}  Bf5 {[%clk 0:00:10]} 31. Bd3 {[%clk 0:00:21]}  Ne3 {[%clk 0:00:05]} 32. h3 {[%clk 0:00:14]}  Bxd3 {[%clk 0:00:05]} 33. Rxd3 {[%clk 0:00:12]}  Qg6 {[%clk 0:00:05]} 34. Bxf4 {[%clk 0:00:10]}  Qxd3 {[%clk 0:00:03]} 35. Qf6 {[%clk 0:00:10]}  Qf1+ {[%clk 0:00:03]} 36. Kh2 {[%clk 0:00:10]}  Qxg2# {[%clk 0:00:04]} 0-1


[Site "https://www.chess.com"]

[Event "Titled Tuesday Blitz February 14 Early 2023"]
[White "Mazurkiewicz, Michal"]
[Black "Sovetbekova, Nurai"]
[WhiteFideId "1124943"]
[BlackFideId "13801910"]
[WhiteElo "2145"]
[BlackElo "1764"]
[Result "1-0"]
[Round "11"]
[TimeControl "180+2"]
[Date "2023.02.14"]
[WhiteClock "0:02:00"]
[BlackClock "0:00:14"]

1. e4 {[%clk 0:02:59]}  c5 {[%clk 0:02:59]} 2. Nf3 {[%clk 0:03:00]}  d6 {[%clk 0:02:59]} 3. g3 {[%clk 0:03:00]}  Nf6 {[%clk 0:02:57]} 4. d3 {[%clk 0:03:00]}  g6 {[%clk 0:02:54]} 5. Bg2 {[%clk 0:03:00]}  Bg7 {[%clk 0:02:55]} 6. O-O {[%clk 0:03:01]}  O-O {[%clk 0:02:55]} 7. Re1 {[%clk 0:03:02]}  Nc6 {[%clk 0:02:55]} 8. e5 {[%clk 0:03:02]}  dxe5 {[%clk 0:02:54]} 9. Nxe5 {[%clk 0:03:03]}  Nxe5 {[%clk 0:02:50]} 10. Rxe5 {[%clk 0:03:04]}  Rb8 {[%clk 0:02:34]} 11. Bf4 {[%clk 0:03:02]}  Nd7 {[%clk 0:02:14]} 12. Rd5 {[%clk 0:02:57]}  e6 {[%clk 0:02:05]} 13. Bxb8 {[%clk 0:02:43]}  exd5 {[%clk 0:02:03]} 14. Bd6 {[%clk 0:02:43]}  Bxb2 {[%clk 0:01:57]} 15. Bxf8 {[%clk 0:02:37]}  Nxf8 {[%clk 0:01:55]} 16. Nd2 {[%clk 0:02:33]}  Bxa1 {[%clk 0:01:53]} 17. Qxa1 {[%clk 0:02:34]}  Ne6 {[%clk 0:01:49]} 18. Qe5 {[%clk 0:02:32]}  d4 {[%clk 0:01:44]} 19. Ne4 {[%clk 0:02:31]}  h6 {[%clk 0:00:59]} 20. Bh3 {[%clk 0:02:18]}  b6 {[%clk 0:00:55]} 21. Qb8 {[%clk 0:02:14]}  Kg7 {[%clk 0:00:29]} 22. Bxe6 {[%clk 0:02:08]}  fxe6 {[%clk 0:00:27]} 23. Qxa7+ {[%clk 0:02:07]}  Kg8 {[%clk 0:00:22]} 24. Qb8 {[%clk 0:02:00]}  Kf7 {[%clk 0:00:19]} 25. Qxc8 {[%clk 0:01:59]}  Qxc8 {[%clk 0:00:17]} 26. Nd6+ {[%clk 0:01:59]}  Kf6 {[%clk 0:00:15]} 27. Nxc8 {[%clk 0:02:00]}  b5 {[%clk 0:00:15]} 28. Nd6 {[%clk 0:02:00]}  b4 {[%clk 0:00:14]} 29. Ne4+ {[%clk 0:02:00]}  Ke5 {[%clk 0:00:14]} 30. Nxc5 {[%clk 0:02:01]}  Kd5 {[%clk 0:00:15]} 31. Na6 {[%clk 0:02:00]}  e5 {[%clk 0:00:14]} 32. Nxb4+ {[%clk 0:02:00]} 1-0


[Site "https://www.chess.com"]

[Event "Titled Tuesday Blitz February 14 Early 2023"]
[White "Tinmaz, Kerem"]
[Black "Babikov, Ivan"]
[WhiteFideId "44559151"]
[BlackFideId "4161106"]
[WhiteElo "2177"]
[BlackElo "2239"]
[Result "1/2-1/2"]
[Round "11"]
[TimeControl "180+2"]
[Date "2023.02.14"]
[WhiteClock "0:00:03"]
[BlackClock "0:00:03"]

1. e4 {[%clk 0:03:00]}  c5 {[%clk 0:02:58]} 2. Nc3 {[%clk 0:03:00]}  g6 {[%clk 0:02:58]} 3. d4 {[%clk 0:03:00]}  Bg7 {[%clk 0:02:57]} 4. dxc5 {[%clk 0:03:00]}  Qa5 {[%clk 0:02:57]} 5. Bd2 {[%clk 0:03:00]}  Qxc5 {[%clk 0:02:56]} 6. Nd5 {[%clk 0:02:55]}  Na6 {[%clk 0:02:25]} 7. Bxa6 {[%clk 0:02:48]}  bxa6 {[%clk 0:02:25]} 8. Bc3 {[%clk 0:02:45]}  Bxc3+ {[%clk 0:02:23]} 9. Nxc3 {[%clk 0:02:46]}  Bb7 {[%clk 0:02:21]} 10. Nf3 {[%clk 0:02:41]}  e6 {[%clk 0:02:18]} 11. O-O {[%clk 0:02:41]}  Ne7 {[%clk 0:02:18]} 12. Qd3 {[%clk 0:02:31]}  d5 {[%clk 0:02:17]} 13. Rfe1 {[%clk 0:02:25]}  O-O {[%clk 0:02:16]} 14. Rad1 {[%clk 0:02:00]}  Rfd8 {[%clk 0:02:12]} 15. e5 {[%clk 0:01:58]}  Nf5 {[%clk 0:02:05]} 16. Qd2 {[%clk 0:01:39]}  Rac8 {[%clk 0:01:58]} 17. Qg5 {[%clk 0:01:34]}  d4 {[%clk 0:01:54]} 18. Ne4 {[%clk 0:01:21]}  Bxe4 {[%clk 0:01:53]} 19. Rxe4 {[%clk 0:01:22]}  Qxc2 {[%clk 0:01:53]} 20. Rde1 {[%clk 0:01:18]}  d3 {[%clk 0:01:44]} 21. g4 {[%clk 0:01:07]}  d2 {[%clk 0:01:41]} 22. Nxd2 {[%clk 0:01:04]}  Rxd2 {[%clk 0:01:19]} 23. gxf5 {[%clk 0:01:04]}  Rxf2 {[%clk 0:01:16]} 24. f6 {[%clk 0:00:51]}  Rxh2 {[%clk 0:01:05]} 25. Qg3 {[%clk 0:00:28]}  Rd2 {[%clk 0:01:01]} 26. Qh3 {[%clk 0:00:21]}  Qxe4 {[%clk 0:00:48]} 27. Rxe4 {[%clk 0:00:16]}  Rc1+ {[%clk 0:00:48]} 28. Qf1 {[%clk 0:00:16]}  Rxf1+ {[%clk 0:00:48]} 29. Kxf1 {[%clk 0:00:17]}  Rxb2 {[%clk 0:00:49]} 30. Ra4 {[%clk 0:00:18]}  h5 {[%clk 0:00:45]} 31. Rxa6 {[%clk 0:00:17]}  h4 {[%clk 0:00:45]} 32. Rxa7 {[%clk 0:00:17]}  h3 {[%clk 0:00:45]} 33. Kg1 {[%clk 0:00:17]}  g5 {[%clk 0:00:44]} 34. Ra3 {[%clk 0:00:09]}  h2+ {[%clk 0:00:41]} 35. Kh1 {[%clk 0:00:09]}  Kh7 {[%clk 0:00:40]} 36. Rh3+ {[%clk 0:00:08]}  Kg6 {[%clk 0:00:40]} 37. Rxh2 {[%clk 0:00:08]}  Rb1+ {[%clk 0:00:37]} 38. Kg2 {[%clk 0:00:08]}  Kf5 {[%clk 0:00:38]} 39. Rh7 {[%clk 0:00:03]}  Rb2+ {[%clk 0:00:29]} 40. Kf3 {[%clk 0:00:03]}  Rxa2 {[%clk 0:00:30]} 41. Rxf7 {[%clk 0:00:03]}  g4+ {[%clk 0:00:29]} 42. Kg3 {[%clk 0:00:03]}  Ra3+ {[%clk 0:00:29]} 43. Kg2 {[%clk 0:00:03]}  Kxe5 {[%clk 0:00:28]} 44. Rg7 {[%clk 0:00:03]}  Kxf6 {[%clk 0:00:19]} 45. Rxg4 {[%clk 0:00:02]}  Kf5 {[%clk 0:00:20]} 46. Rb4 {[%clk 0:00:02]}  e5 {[%clk 0:00:18]} 47. Kf2 {[%clk 0:00:03]}  e4 {[%clk 0:00:16]} 48. Ke2 {[%clk 0:00:03]}  Kf4 {[%clk 0:00:15]} 49. Rc4 {[%clk 0:00:02]}  Ra2+ {[%clk 0:00:15]} 50. Ke1 {[%clk 0:00:02]}  Kf3 {[%clk 0:00:13]} 51. Rc8 {[%clk 0:00:02]}  Ra1+ {[%clk 0:00:08]} 52. Kd2 {[%clk 0:00:02]}  e3+ {[%clk 0:00:08]} 53. Kd3 {[%clk 0:00:02]}  Rd1+ {[%clk 0:00:09]} 54. Kc2 {[%clk 0:00:03]}  Ke2 {[%clk 0:00:09]} 55. Re8 {[%clk 0:00:02]}  Rd2+ {[%clk 0:00:07]} 56. Kc1 {[%clk 0:00:02]}  Rd6 {[%clk 0:00:07]} 57. Kc2 {[%clk 0:00:02]}  Rc6+ {[%clk 0:00:07]} 58. Kb2 {[%clk 0:00:03]}  Kd2 {[%clk 0:00:07]} 59. Rd8+ {[%clk 0:00:03]}  Ke1 {[%clk 0:00:07]} 60. Re8 {[%clk 0:00:04]}  e2 {[%clk 0:00:07]} 61. Kb1 {[%clk 0:00:05]}  Rc5 {[%clk 0:00:07]} 62. Kb2 {[%clk 0:00:05]}  Kd2 {[%clk 0:00:06]} 63. Rd8+ {[%clk 0:00:06]}  Ke3 {[%clk 0:00:07]} 64. Re8+ {[%clk 0:00:06]}  Kd2 {[%clk 0:00:06]} 65. Rd8+ {[%clk 0:00:07]}  Ke1 {[%clk 0:00:07]} 66. Re8 {[%clk 0:00:08]}  Rc4 {[%clk 0:00:06]} 67. Kb3 {[%clk 0:00:08]}  Rc7 {[%clk 0:00:05]} 68. Re6 {[%clk 0:00:07]}  Rc1 {[%clk 0:00:04]} 69. Kb2 {[%clk 0:00:07]}  Rc5 {[%clk 0:00:02]} 70. Kb3 {[%clk 0:00:07]}  Rf5 {[%clk 0:00:02]} 71. Kc3 {[%clk 0:00:04]}  Rd5 {[%clk 0:00:01]} 72. Kc2 {[%clk 0:00:04]}  Rd7 {[%clk 0:00:02]} 73. Re8 {[%clk 0:00:04]}  Rc7+ {[%clk 0:00:02]} 74. Kb2 {[%clk 0:00:04]}  Rc4 {[%clk 0:00:03]} 75. Kb3 {[%clk 0:00:04]}  Rc5 {[%clk 0:00:03]} 76. Kb2 {[%clk 0:00:03]} 1/2-1/2


[Site "https://www.chess.com"]

[Event "Titled Tuesday Blitz February 14 Early 2023"]
[White "Lesbekova, Assel"]
[Black "Mirzanurov, Bulat"]
[WhiteFideId "13713248"]
[BlackFideId "4184521"]
[WhiteElo "1772"]
[BlackElo "2232"]
[Result "1-0"]
[Round "11"]
[TimeControl "180+2"]
[Date "2023.02.14"]
[WhiteClock "0:01:02"]
[BlackClock "0:00:08"]

1. e4 {[%clk 0:03:00]}  c5 {[%clk 0:02:59]} 2. Nc3 {[%clk 0:02:59]}  d6 {[%clk 0:02:59]} 3. Nge2 {[%clk 0:02:59]}  Nf6 {[%clk 0:02:58]} 4. d4 {[%clk 0:02:59]}  cxd4 {[%clk 0:02:59]} 5. Nxd4 {[%clk 0:03:00]}  a6 {[%clk 0:02:59]} 6. f3 {[%clk 0:03:00]}  e5 {[%clk 0:02:51]} 7. Nb3 {[%clk 0:03:00]}  Be6 {[%clk 0:02:48]} 8. g4 {[%clk 0:02:58]}  h6 {[%clk 0:02:37]} 9. Be3 {[%clk 0:02:57]}  Be7 {[%clk 0:02:36]} 10. Nd5 {[%clk 0:02:56]}  Bxd5 {[%clk 0:02:30]} 11. exd5 {[%clk 0:02:57]}  Nbd7 {[%clk 0:02:29]} 12. a4 {[%clk 0:02:56]}  e4 {[%clk 0:02:23]} 13. Bg2 {[%clk 0:02:49]}  exf3 {[%clk 0:02:21]} 14. Bxf3 {[%clk 0:02:46]}  Ne5 {[%clk 0:02:19]} 15. Be2 {[%clk 0:02:47]}  Qd7 {[%clk 0:02:00]} 16. h3 {[%clk 0:02:47]}  O-O {[%clk 0:01:57]} 17. O-O {[%clk 0:02:44]}  b5 {[%clk 0:01:51]} 18. axb5 {[%clk 0:02:41]}  axb5 {[%clk 0:01:51]} 19. Qd4 {[%clk 0:02:39]}  Rac8 {[%clk 0:01:36]} 20. Ra7 {[%clk 0:02:33]}  Rc7 {[%clk 0:01:28]} 21. Rfa1 {[%clk 0:02:29]}  Rfc8 {[%clk 0:01:25]} 22. Bd3 {[%clk 0:02:18]}  Nxd3 {[%clk 0:01:20]} 23. Qxd3 {[%clk 0:02:19]}  Rxa7 {[%clk 0:01:18]} 24. Rxa7 {[%clk 0:02:18]}  Rc7 {[%clk 0:01:19]} 25. Rxc7 {[%clk 0:02:14]}  Qxc7 {[%clk 0:01:19]} 26. c3 {[%clk 0:02:09]}  Qc4 {[%clk 0:01:17]} 27. Qxc4 {[%clk 0:02:08]}  bxc4 {[%clk 0:01:18]} 28. Na5 {[%clk 0:02:08]}  Nxd5 {[%clk 0:01:17]} 29. Nxc4 {[%clk 0:02:05]}  Nxe3 {[%clk 0:01:13]} 30. Nxe3 {[%clk 0:02:04]}  Bg5 {[%clk 0:01:13]} 31. Nd5 {[%clk 0:02:01]}  Bc1 {[%clk 0:01:12]} 32. b4 {[%clk 0:01:59]}  Kf8 {[%clk 0:01:10]} 33. b5 {[%clk 0:01:55]}  Ba3 {[%clk 0:01:05]} 34. b6 {[%clk 0:01:52]}  Bc5+ {[%clk 0:01:04]} 35. Kg2 {[%clk 0:01:52]}  Ke8 {[%clk 0:00:36]} 36. b7 {[%clk 0:01:46]}  Ba7 {[%clk 0:00:36]} 37. Kf3 {[%clk 0:01:41]}  Kd7 {[%clk 0:00:34]} 38. Ke4 {[%clk 0:01:40]}  Kc6 {[%clk 0:00:28]} 39. Ne7+ {[%clk 0:01:39]}  Kxb7 {[%clk 0:00:27]} 40. Nf5 {[%clk 0:01:40]}  Kc7 {[%clk 0:00:21]} 41. Nxg7 {[%clk 0:01:40]}  Kd7 {[%clk 0:00:21]} 42. Nf5 {[%clk 0:01:39]}  Ke6 {[%clk 0:00:20]} 43. Nxh6 {[%clk 0:01:38]}  Bf2 {[%clk 0:00:20]} 44. Nf5 {[%clk 0:01:34]}  d5+ {[%clk 0:00:20]} 45. Kf3 {[%clk 0:01:34]}  Be1 {[%clk 0:00:20]} 46. Nd4+ {[%clk 0:01:31]}  Ke5 {[%clk 0:00:20]} 47. Ne2 {[%clk 0:01:31]}  f5 {[%clk 0:00:18]} 48. g5 {[%clk 0:01:19]}  Bh4 {[%clk 0:00:17]} 49. g6 {[%clk 0:01:19]}  Kf6 {[%clk 0:00:16]} 50. Nf4 {[%clk 0:01:18]}  Kg7 {[%clk 0:00:13]} 51. Nxd5 {[%clk 0:01:11]}  Kxg6 {[%clk 0:00:12]} 52. Kf4 {[%clk 0:01:10]}  Bg5+ {[%clk 0:00:11]} 53. Ke5 {[%clk 0:01:11]}  f4 {[%clk 0:00:09]} 54. Nxf4+ {[%clk 0:01:10]}  Kf7 {[%clk 0:00:09]} 55. c4 {[%clk 0:01:06]}  Bf6+ {[%clk 0:00:09]} 56. Kf5 {[%clk 0:01:05]}  Bd4 {[%clk 0:00:09]} 57. Nd3 {[%clk 0:01:02]}  Ke7 {[%clk 0:00:08]} 58. h4 {[%clk 0:01:02]} 1-0


[Site "https://www.chess.com"]

[Event "Titled Tuesday Blitz February 14 Early 2023"]
[White "Gatterer, Florian"]
[Black "Nugumanov, Bakhtiyar"]
[WhiteFideId "811688"]
[BlackFideId "13701797"]
[WhiteElo "2170"]
[BlackElo "2316"]
[Result "1/2-1/2"]
[Round "11"]
[TimeControl "180+2"]
[Date "2023.02.14"]
[WhiteClock "0:02:38"]
[BlackClock "0:02:32"]

1. e4 {[%clk 0:03:00]}  d6 {[%clk 0:02:59]} 2. d4 {[%clk 0:03:00]}  Nf6 {[%clk 0:03:00]} 3. Nc3 {[%clk 0:03:01]}  e5 {[%clk 0:02:59]} 4. Nf3 {[%clk 0:03:00]}  exd4 {[%clk 0:02:59]} 5. Nxd4 {[%clk 0:03:00]}  Be7 {[%clk 0:03:00]} 6. Be2 {[%clk 0:02:59]}  O-O {[%clk 0:03:01]} 7. O-O {[%clk 0:02:59]}  c6 {[%clk 0:03:02]} 8. f3 {[%clk 0:02:59]}  a5 {[%clk 0:02:58]} 9. a4 {[%clk 0:02:59]}  Na6 {[%clk 0:02:58]} 10. Bg5 {[%clk 0:02:55]}  Nc5 {[%clk 0:02:51]} 11. Qd2 {[%clk 0:02:50]}  Re8 {[%clk 0:02:45]} 12. Be3 {[%clk 0:02:48]}  h6 {[%clk 0:02:36]} 13. Bc4 {[%clk 0:02:48]}  Bf8 {[%clk 0:02:36]} 14. Rfe1 {[%clk 0:02:48]}  d5 {[%clk 0:02:35]} 15. exd5 {[%clk 0:02:47]}  cxd5 {[%clk 0:02:36]} 16. Bb5 {[%clk 0:02:41]}  Bd7 {[%clk 0:02:32]} 17. Rad1 {[%clk 0:02:38]} 1/2-1/2


[Site "https://www.chess.com"]

[Event "Titled Tuesday Blitz February 14 Early 2023"]
[White "Orujov, Elshad"]
[Black "Kalajzic, Ivan"]
[WhiteFideId "13403540"]
[BlackFideId "14506378"]
[WhiteElo "2304"]
[BlackElo "2062"]
[Result "1/2-1/2"]
[Round "11"]
[TimeControl "180+2"]
[Date "2023.02.14"]
[WhiteClock "0:00:07"]
[BlackClock "0:00:19"]

1. e4 {[%clk 0:03:00]}  g6 {[%clk 0:02:59]} 2. d4 {[%clk 0:03:00]}  Bg7 {[%clk 0:03:00]} 3. Nc3 {[%clk 0:03:01]}  d6 {[%clk 0:03:00]} 4. Be3 {[%clk 0:03:00]}  a6 {[%clk 0:03:01]} 5. a4 {[%clk 0:02:59]}  b6 {[%clk 0:03:01]} 6. f3 {[%clk 0:02:59]}  Bb7 {[%clk 0:03:01]} 7. Qd2 {[%clk 0:03:00]}  Nd7 {[%clk 0:03:01]} 8. h4 {[%clk 0:03:00]}  c5 {[%clk 0:03:00]} 9. h5 {[%clk 0:03:00]}  Qc7 {[%clk 0:02:51]} 10. hxg6 {[%clk 0:02:53]}  hxg6 {[%clk 0:02:50]} 11. Rxh8 {[%clk 0:02:51]}  Bxh8 {[%clk 0:02:51]} 12. O-O-O {[%clk 0:02:47]}  Rc8 {[%clk 0:02:45]} 13. Nge2 {[%clk 0:02:38]}  cxd4 {[%clk 0:02:10]} 14. Bxd4 {[%clk 0:02:32]}  Bxd4 {[%clk 0:02:01]} 15. Nxd4 {[%clk 0:02:33]}  Ngf6 {[%clk 0:02:02]} 16. g4 {[%clk 0:02:16]}  Ne5 {[%clk 0:01:57]} 17. g5 {[%clk 0:02:16]}  Nh5 {[%clk 0:01:55]} 18. f4 {[%clk 0:02:11]}  Nc4 {[%clk 0:01:55]} 19. Bxc4 {[%clk 0:02:10]}  Qxc4 {[%clk 0:01:55]} 20. f5 {[%clk 0:01:59]}  Ng3 {[%clk 0:01:21]} 21. fxg6 {[%clk 0:01:36]}  fxg6 {[%clk 0:01:17]} 22. Qf4 {[%clk 0:01:13]}  e5 {[%clk 0:00:54]} 23. Qxg3 {[%clk 0:01:03]}  exd4 {[%clk 0:00:54]} 24. Qxd6 {[%clk 0:00:46]}  dxc3 {[%clk 0:00:44]} 25. Qxg6+ {[%clk 0:00:16]}  Qf7 {[%clk 0:00:40]} 26. Qxf7+ {[%clk 0:00:16]}  Kxf7 {[%clk 0:00:41]} 27. Rd7+ {[%clk 0:00:17]}  Kg6 {[%clk 0:00:40]} 28. Rxb7 {[%clk 0:00:17]}  cxb2+ {[%clk 0:00:39]} 29. Kxb2 {[%clk 0:00:18]}  Rc6 {[%clk 0:00:40]} 30. Kc1 {[%clk 0:00:11]}  Kxg5 {[%clk 0:00:40]} 31. Rf7 {[%clk 0:00:11]}  Rc4 {[%clk 0:00:39]} 32. e5 {[%clk 0:00:10]}  Re4 {[%clk 0:00:36]} 33. Rf6 {[%clk 0:00:10]}  Rxe5 {[%clk 0:00:34]} 34. Rxb6 {[%clk 0:00:10]}  Ra5 {[%clk 0:00:34]} 35. Rb4 {[%clk 0:00:10]}  Kf5 {[%clk 0:00:34]} 36. Kb2 {[%clk 0:00:10]}  Ke5 {[%clk 0:00:34]} 37. Kb3 {[%clk 0:00:09]}  Kd6 {[%clk 0:00:34]} 38. Rd4+ {[%clk 0:00:09]}  Kc6 {[%clk 0:00:33]} 39. Rc4+ {[%clk 0:00:09]}  Kb7 {[%clk 0:00:33]} 40. Rh4 {[%clk 0:00:08]}  Rg5 {[%clk 0:00:33]} 41. Rh7+ {[%clk 0:00:08]}  Kb6 {[%clk 0:00:33]} 42. Kb4 {[%clk 0:00:08]}  a5+ {[%clk 0:00:31]} 43. Kb3 {[%clk 0:00:08]}  Rg4 {[%clk 0:00:30]} 44. c3 {[%clk 0:00:08]}  Rg1 {[%clk 0:00:29]} 45. Rh6+ {[%clk 0:00:09]}  Kb7 {[%clk 0:00:29]} 46. Kc4 {[%clk 0:00:09]}  Rb1 {[%clk 0:00:27]} 47. Rh5 {[%clk 0:00:08]}  Ka6 {[%clk 0:00:26]} 48. Rh6+ {[%clk 0:00:07]}  Ka7 {[%clk 0:00:26]} 49. Kc5 {[%clk 0:00:07]}  Rb8 {[%clk 0:00:24]} 50. Rh7+ {[%clk 0:00:07]}  Ka6 {[%clk 0:00:24]} 51. Rh6+ {[%clk 0:00:08]}  Ka7 {[%clk 0:00:24]} 52. c4 {[%clk 0:00:09]}  Rb4 {[%clk 0:00:21]} 53. Rh7+ {[%clk 0:00:06]}  Ka6 {[%clk 0:00:21]} 54. Rh6+ {[%clk 0:00:07]}  Ka7 {[%clk 0:00:20]} 55. Rh5 {[%clk 0:00:06]}  Rxa4 {[%clk 0:00:19]} 56. Kb5 {[%clk 0:00:07]}  Rb4+ {[%clk 0:00:20]} 57. Kc5 {[%clk 0:00:06]}  Rb1 {[%clk 0:00:19]} 58. Rh7+ {[%clk 0:00:05]}  Ka6 {[%clk 0:00:19]} 59. Rh6+ {[%clk 0:00:05]}  Ka7 {[%clk 0:00:19]} 60. Rh7+ {[%clk 0:00:06]}  Ka6 {[%clk 0:00:20]} 61. Rh6+ {[%clk 0:00:06]}  Ka7 {[%clk 0:00:19]} 62. Rh7+ {[%clk 0:00:07]} 1/2-1/2


[Site "https://www.chess.com"]